[Event "*** Titled Tuesday Blitz"]
[Site "Chess.com"]
[Date "2018.01.02"]
[Round "10"]
[White "juniortay"]
[Black "AndrewMcStone"]
[Result "1-0"]
[WhiteElo "2296"]
[BlackElo "2058"]
[TimeControl "180+2"]
[EndTime "15:11:13 PST"]
[Termination "juniortay won by resignation"]

1. e4 {[%clk 0:02:58.4]} 1... Nc6 {[%clk 0:02:59]} 2. Nf3 {[%clk 0:02:59.2]}
2... d6 {[%clk 0:02:59.7]} 3. h3 {[%clk 0:03:00.6]} 3... Nf6 {[%clk 0:02:59.9]}
4. Nc3 {[%clk 0:03:02]} 4... g6 {[%clk 0:03:00.7]} 5. d4 {[%clk 0:03:02.7]} 5...
Bg7 {[%clk 0:03:01.8]} 6. Be3 {[%clk 0:03:03.7]} 6... O-O {[%clk 0:02:59.3]} 7.
Qd2 {[%clk 0:03:04.1]} 7... e5 {[%clk 0:02:46.8]} 8. d5 {[%clk 0:03:04.8]} 8...
Ne7 {[%clk 0:02:44.9]} 9. g4 {[%clk 0:03:05.1]} 9... c6 {[%clk 0:02:32.8]} 10.
Be2 {[%clk 0:02:46.2]} 10... cxd5 {[%clk 0:01:44.7]} 11. exd5 {[%clk 0:02:48.1]}
11... Qa5 {[%clk 0:01:43.8]} 12. Rd1 {[%clk 0:02:32.5]} 12... Bd7 {[%clk
0:01:37.5]} 13. O-O {[%clk 0:02:07.8]} 13... b5 {[%clk 0:01:21.3]} 14. b4 {[%clk
0:02:00.8]} 14... Qxb4 {[%clk 0:01:07.6]} 15. Rb1 {[%clk 0:02:00.1]} 15... Qa5
{[%clk 0:01:03.8]} 16. Nxb5 {[%clk 0:01:51.6]} 16... Qxd2 {[%clk 0:01:00.1]} 17.
Bxd2 {[%clk 0:01:50.4]} 17... Bxb5 {[%clk 0:01:00.4]} 18. Bxb5 {[%clk
0:01:48.2]} 18... Nfxd5 {[%clk 0:00:55.7]} 19. c4 {[%clk 0:01:41.1]} 19... Nc7
{[%clk 0:00:49.1]} 20. Ba4 {[%clk 0:01:40.4]} 20... e4 {[%clk 0:00:48.5]} 21.
Ng5 {[%clk 0:01:38.2]} 21... f5 {[%clk 0:00:35.5]} 22. Ba5 {[%clk 0:01:34.9]}
22... Rfc8 {[%clk 0:00:23.5]} 23. Rb7 {[%clk 0:01:31.4]} 23... Bf6 {[%clk
0:00:21.3]} 24. Nxe4 {[%clk 0:01:23]} 24... fxe4 {[%clk 0:00:21.4]} 25. Bxc7
{[%clk 0:01:23.9]} 25... d5 {[%clk 0:00:10.5]} 26. cxd5 {[%clk 0:01:22]} 26...
Nxd5 {[%clk 0:00:11.4]} 27. Bb3 {[%clk 0:01:22.4]} 27... Kg7 {[%clk 0:00:09]}
1-0

[Event "*** Titled Tuesday Blitz"]
[Site "Chess.com"]
[Date "2018.01.02"]
[Round "10"]
[White "Blitzstream"]
[Black "Zufi1811"]
[Result "0-1"]
[WhiteElo "2492"]
[BlackElo "2422"]
[TimeControl "180+2"]
[EndTime "15:11:41 PST"]
[Termination "Zufi1811 won by resignation"]

1. e4 {[%clk 0:03:01.9]} 1... c5 {[%clk 0:02:59.6]} 2. Nf3 {[%clk 0:03:02]} 2...
d6 {[%clk 0:03:01.2]} 3. b4 {[%clk 0:03:02.9]} 3... b6 {[%clk 0:02:56.1]} 4.
bxc5 {[%clk 0:02:58.7]} 4... bxc5 {[%clk 0:02:58]} 5. Nc3 {[%clk 0:03:00]} 5...
g6 {[%clk 0:02:52.1]} 6. e5 {[%clk 0:02:57]} 6... Bg7 {[%clk 0:02:51.8]} 7. exd6
{[%clk 0:02:45.6]} 7... exd6 {[%clk 0:02:53.7]} 8. Bc4 {[%clk 0:02:33.7]} 8...
Ne7 {[%clk 0:02:50.5]} 9. Bxf7+ {[%clk 0:02:06.6]} 9... Kxf7 {[%clk 0:02:50.8]}
10. Ng5+ {[%clk 0:02:07.9]} 10... Kg8 {[%clk 0:01:57.8]} 11. Qf3 {[%clk
0:02:09.8]} 11... Qe8 {[%clk 0:01:48.7]} 12. Qxa8 {[%clk 0:02:04.1]} 12... Nec6+
{[%clk 0:01:34.6]} 13. Kf1 {[%clk 0:01:47.6]} 13... Ba6+ {[%clk 0:01:32.1]} 14.
d3 {[%clk 0:01:20.4]} 14... Bxc3 {[%clk 0:01:31.7]} 15. Bb2 {[%clk 0:01:17.4]}
15... Bxb2 {[%clk 0:01:25.3]} 16. Re1 {[%clk 0:01:18.2]} 16... Qc8 {[%clk
0:01:17.2]} 17. h4 {[%clk 0:01:16.6]} 17... Bb7 {[%clk 0:01:15.8]} 18. Re8+
{[%clk 0:01:10]} 18... Qxe8 {[%clk 0:01:17.2]} 19. Qxb7 {[%clk 0:01:11]} 19...
h6 {[%clk 0:01:17.9]} 20. Qb3+ {[%clk 0:01:06.5]} 20... Kf8 {[%clk 0:01:14.9]}
21. Qxb2 {[%clk 0:01:04.2]} 21... Nd4 {[%clk 0:01:15.9]} 22. Ne4 {[%clk
0:00:51.4]} 22... Nbc6 {[%clk 0:01:12.4]} 23. Rh3 {[%clk 0:00:41.3]} 23... Kg7
{[%clk 0:01:13.3]} 24. Nxd6 {[%clk 0:00:22.8]} 24... Qe2+ {[%clk 0:01:12]} 25.
Kg1 {[%clk 0:00:24]} 25... Qe1+ {[%clk 0:01:09.3]} 26. Kh2 {[%clk 0:00:25]}
26... Qe5+ {[%clk 0:01:11.2]} 27. Rg3 {[%clk 0:00:23]} 27... Qxd6 {[%clk
0:01:10.6]} 28. h5 {[%clk 0:00:23.8]} 28... Rf8 {[%clk 0:00:57.4]} 29. Qb7+
{[%clk 0:00:20]} 29... Rf7 {[%clk 0:00:57.7]} 30. Qa8 {[%clk 0:00:19.9]} 30...
Ne2 {[%clk 0:00:52.6]} 31. f4 {[%clk 0:00:19.5]} 31... Qxf4 {[%clk 0:00:50.1]}
0-1

[Event "*** Titled Tuesday Blitz"]
[Site "Chess.com"]
[Date "2018.01.02"]
[Round "10"]
[White "Jbd735"]
[Black "Kawhi_Leonard2"]
[Result "1/2-1/2"]
[WhiteElo "2293"]
[BlackElo "2187"]
[TimeControl "180+2"]
[EndTime "15:11:42 PST"]
[Termination "Game drawn by repetition"]

1. e4 {[%clk 0:03:01.9]} 1... c5 {[%clk 0:03:00.5]} 2. Nf3 {[%clk 0:03:02.3]}
2... d6 {[%clk 0:03:01.7]} 3. d4 {[%clk 0:03:02.3]} 3... cxd4 {[%clk 0:03:03]}
4. Nxd4 {[%clk 0:03:04]} 4... Nf6 {[%clk 0:03:04.4]} 5. Nc3 {[%clk 0:03:05]}
5... g6 {[%clk 0:03:05.6]} 6. Be3 {[%clk 0:03:00]} 6... Bg7 {[%clk 0:03:06.3]}
7. f3 {[%clk 0:03:00.5]} 7... Nc6 {[%clk 0:03:07.3]} 8. Bc4 {[%clk 0:03:00.2]}
8... O-O {[%clk 0:03:08.1]} 9. Qd2 {[%clk 0:03:01.1]} 9... Bd7 {[%clk 0:03:09]}
10. O-O-O {[%clk 0:03:01.4]} 10... Rc8 {[%clk 0:03:10.6]} 11. Bb3 {[%clk
0:03:01.9]} 11... Nxd4 {[%clk 0:03:11.9]} 12. Bxd4 {[%clk 0:03:01.4]} 12... b5
{[%clk 0:03:13.8]} 13. Nd5 {[%clk 0:02:50.2]} 13... Nxd5 {[%clk 0:03:14.4]} 14.
Bxg7 {[%clk 0:02:45.4]} 14... Kxg7 {[%clk 0:03:16.3]} 15. exd5 {[%clk
0:02:44.1]} 15... a5 {[%clk 0:03:17.4]} 16. a3 {[%clk 0:02:35.4]} 16... Kg8
{[%clk 0:03:16.7]} 17. g4 {[%clk 0:02:34.9]} 17... b4 {[%clk 0:03:12.2]} 18. a4
{[%clk 0:02:34.2]} 18... Qe8 {[%clk 0:03:11.8]} 19. Kb1 {[%clk 0:02:10.8]} 19...
Bxa4 {[%clk 0:03:11.8]} 20. h4 {[%clk 0:01:54.8]} 20... Bxb3 {[%clk 0:02:17.7]}
21. cxb3 {[%clk 0:01:55.3]} 21... e5 {[%clk 0:02:18.7]} 22. h5 {[%clk
0:01:46.4]} 22... f6 {[%clk 0:02:15]} 23. hxg6 {[%clk 0:01:19.7]} 23... Qxg6+
{[%clk 0:02:15.3]} 24. Ka2 {[%clk 0:01:19.9]} 24... Rc2 {[%clk 0:02:14.7]} 25.
Qe3 {[%clk 0:01:14]} 25... Rc5 {[%clk 0:01:58.9]} 26. Rh6 {[%clk 0:01:07.3]}
26... Qc2 {[%clk 0:01:48.6]} 27. Rd2 {[%clk 0:01:02.3]} 27... Qc1 {[%clk
0:01:21.9]} 28. Qd3 {[%clk 0:01:02.2]} 28... Rf7 {[%clk 0:01:20.5]} 29. Rdh2
{[%clk 0:00:58.9]} 29... Rcc7 {[%clk 0:01:03.5]} 30. Qg6+ {[%clk 0:00:57.8]}
30... Kh8 {[%clk 0:00:55.7]} 31. Rxh7+ {[%clk 0:00:38.5]} 31... Rxh7 {[%clk
0:00:56.5]} 32. Qxf6+ {[%clk 0:00:39.5]} 32... Rg7 {[%clk 0:00:46.9]} 33. Qf8+
{[%clk 0:00:33.2]} 33... Rg8 {[%clk 0:00:48.1]} 34. Qf6+ {[%clk 0:00:33.7]}
34... Rg7 {[%clk 0:00:49.4]} 35. Qd8+ {[%clk 0:00:34.1]} 35... Rg8 {[%clk
0:00:50.4]} 36. Qf6+ {[%clk 0:00:34.3]} 36... Rg7 {[%clk 0:00:51.2]} 37. Qf8+
{[%clk 0:00:34.6]} 37... Rg8 {[%clk 0:00:52.2]} 38. Qf6+ {[%clk 0:00:35.5]}
38... Rg7 {[%clk 0:00:53.5]} 1/2-1/2

[Event "*** Titled Tuesday Blitz"]
[Site "Chess.com"]
[Date "2018.01.02"]
[Round "10"]
[White "Ginger_GM"]
[Black "Indianlad"]
[Result "1-0"]
[WhiteElo "2498"]
[BlackElo "2636"]
[TimeControl "180+2"]
[EndTime "15:12:27 PST"]
[Termination "Ginger_GM won on time"]

1. d4 {[%clk 0:03:01.9]} 1... Nf6 {[%clk 0:02:59.6]} 2. c4 {[%clk 0:03:00.9]}
2... e6 {[%clk 0:02:59.7]} 3. Nf3 {[%clk 0:02:56.5]} 3... d5 {[%clk 0:02:59.2]}
4. Nc3 {[%clk 0:02:56.6]} 4... c6 {[%clk 0:02:56.6]} 5. Bg5 {[%clk 0:02:56.8]}
5... h6 {[%clk 0:02:57.1]} 6. Bh4 {[%clk 0:02:56.5]} 6... Be7 {[%clk 0:02:51.6]}
7. e3 {[%clk 0:02:53.7]} 7... b6 {[%clk 0:02:50.9]} 8. Qc2 {[%clk 0:02:53.5]}
8... Bb7 {[%clk 0:02:50.3]} 9. O-O-O {[%clk 0:02:53.9]} 9... Nbd7 {[%clk
0:02:49.8]} 10. Ne5 {[%clk 0:02:37.3]} 10... Nxe5 {[%clk 0:02:44.9]} 11. dxe5
{[%clk 0:02:37.4]} 11... Nd7 {[%clk 0:02:46.5]} 12. Bg3 {[%clk 0:02:27.3]} 12...
a6 {[%clk 0:02:38.7]} 13. e4 {[%clk 0:02:17.8]} 13... dxc4 {[%clk 0:02:37.1]}
14. Bxc4 {[%clk 0:02:17.6]} 14... b5 {[%clk 0:02:37.6]} 15. Be2 {[%clk
0:02:12.2]} 15... Qc7 {[%clk 0:02:37]} 16. f4 {[%clk 0:02:12.4]} 16... O-O
{[%clk 0:02:37.3]} 17. Kb1 {[%clk 0:01:42.4]} 17... c5 {[%clk 0:02:37.1]} 18.
Nd5 {[%clk 0:01:40.4]} 18... exd5 {[%clk 0:02:37.1]} 19. exd5 {[%clk 0:01:40.9]}
19... Bxd5 {[%clk 0:02:13.2]} 20. Rxd5 {[%clk 0:01:40.9]} 20... Nb6 {[%clk
0:02:13.5]} 21. Rdd1 {[%clk 0:01:37]} 21... c4 {[%clk 0:02:11.6]} 22. f5 {[%clk
0:01:36.5]} 22... Bc5 {[%clk 0:02:08]} 23. f6 {[%clk 0:01:29.3]} 23... Qc8
{[%clk 0:01:57.6]} 24. fxg7 {[%clk 0:01:25.3]} 24... Re8 {[%clk 0:01:57.7]} 25.
Rhf1 {[%clk 0:01:23.1]} 25... Ra7 {[%clk 0:01:50]} 26. Rf6 {[%clk 0:01:21.1]}
26... Kxg7 {[%clk 0:01:39.9]} 27. Bf4 {[%clk 0:01:02.2]} 27... Rh8 {[%clk
0:01:37.5]} 28. Qc1 {[%clk 0:00:54.8]} 28... Kf8 {[%clk 0:01:28.5]} 29. Bh5
{[%clk 0:00:49.1]} 29... Ke8 {[%clk 0:01:23.6]} 30. e6 {[%clk 0:00:47.7]} 30...
c3 {[%clk 0:01:17.7]} 31. Qxc3 {[%clk 0:00:41.3]} 1-0

[Event "*** Titled Tuesday Blitz"]
[Site "Chess.com"]
[Date "2018.01.02"]
[Round "10"]
[White "ckgchess"]
[Black "Incognito_Knight"]
[Result "0-1"]
[WhiteElo "2483"]
[BlackElo "2547"]
[TimeControl "180+2"]
[EndTime "15:12:33 PST"]
[Termination "Incognito_Knight won by resignation"]

1. e4 {[%clk 0:03:01.3]} 1... e5 {[%clk 0:02:59.7]} 2. Nc3 {[%clk 0:03:01.6]}
2... Nc6 {[%clk 0:02:59.2]} 3. g3 {[%clk 0:03:02.8]} 3... Bc5 {[%clk 0:02:59.2]}
4. Bg2 {[%clk 0:03:03.9]} 4... Nf6 {[%clk 0:03:00.4]} 5. Nge2 {[%clk 0:03:04.5]}
5... O-O {[%clk 0:03:00.9]} 6. O-O {[%clk 0:03:05.1]} 6... a6 {[%clk 0:03:02.2]}
7. h3 {[%clk 0:03:05.6]} 7... d6 {[%clk 0:03:02.3]} 8. Kh2 {[%clk 0:03:06.7]}
8... Be6 {[%clk 0:03:02.8]} 9. f4 {[%clk 0:03:07.9]} 9... Nd4 {[%clk 0:02:58.8]}
10. f5 {[%clk 0:03:03.7]} 10... Bd7 {[%clk 0:02:58.1]} 11. d3 {[%clk 0:03:05.1]}
11... b5 {[%clk 0:02:43]} 12. a3 {[%clk 0:03:00.3]} 12... a5 {[%clk 0:02:43.9]}
13. g4 {[%clk 0:03:00.8]} 13... b4 {[%clk 0:02:45]} 14. Nb1 {[%clk 0:02:50.4]}
14... h6 {[%clk 0:02:32.8]} 15. Nxd4 {[%clk 0:02:45.5]} 15... Bxd4 {[%clk
0:02:32.8]} 16. Nd2 {[%clk 0:02:43.5]} 16... c6 {[%clk 0:02:29.3]} 17. axb4
{[%clk 0:02:31.3]} 17... axb4 {[%clk 0:02:30.4]} 18. Rxa8 {[%clk 0:02:33.1]}
18... Qxa8 {[%clk 0:02:31.1]} 19. Nb3 {[%clk 0:02:35]} 19... Bb6 {[%clk
0:02:30.6]} 20. h4 {[%clk 0:02:34.3]} 20... h5 {[%clk 0:01:57.4]} 21. g5 {[%clk
0:02:29.4]} 21... Ng4+ {[%clk 0:01:58.3]} 22. Kg3 {[%clk 0:02:30.7]} 22... g6
{[%clk 0:01:54.3]} 23. Bh3 {[%clk 0:02:17.5]} 23... Ne3 {[%clk 0:01:31.4]} 24.
Bxe3 {[%clk 0:02:08.8]} 24... Bxe3 {[%clk 0:01:33.3]} 25. Kf3 {[%clk 0:01:32.5]}
25... Bf4 {[%clk 0:01:31.5]} 26. Nc1 {[%clk 0:01:33.4]} 26... gxf5 {[%clk
0:01:06.2]} 27. exf5 {[%clk 0:01:32.2]} 27... c5+ {[%clk 0:01:06.9]} 28. Kf2
{[%clk 0:01:32.6]} 28... c4 {[%clk 0:00:57.4]} 29. Qxh5 {[%clk 0:01:22.8]} 29...
Qa7+ {[%clk 0:00:56.9]} 30. Kg2 {[%clk 0:01:23.8]} 30... Bc6+ {[%clk 0:00:55.7]}
31. Rf3 {[%clk 0:01:17.5]} 31... Bxc1 {[%clk 0:00:53.7]} 32. f6 {[%clk
0:01:08.1]} 32... Bxf3+ {[%clk 0:00:52.1]} 33. Kxf3 {[%clk 0:01:00.5]} 33...
Qe3+ {[%clk 0:00:50]} 34. Kg2 {[%clk 0:01:01.9]} 34... Qd2+ {[%clk 0:00:47.8]}
35. Kg1 {[%clk 0:00:19.7]} 35... Qe1+ {[%clk 0:00:45.8]} 36. Kg2 {[%clk
0:00:21.1]} 36... Be3 {[%clk 0:00:40.4]} 37. Bf5 {[%clk 0:00:12.9]} 37... Qf2+
{[%clk 0:00:39.3]} 38. Kh3 {[%clk 0:00:14.4]} 38... Qxf5+ {[%clk 0:00:39.4]} 0-1

[Event "*** Titled Tuesday Blitz"]
[Site "Chess.com"]
[Date "2018.01.02"]
[Round "10"]
[White "TheBigBoss04"]
[Black "Dr-Bassem"]
[Result "1-0"]
[WhiteElo "2514"]
[BlackElo "2630"]
[TimeControl "180+2"]
[EndTime "15:12:56 PST"]
[Termination "TheBigBoss04 won on time"]

1. d4 {[%clk 0:03:01.9]} 1... f5 {[%clk 0:02:54.9]} 2. Bg5 {[%clk 0:03:02.3]}
2... Nf6 {[%clk 0:02:48.7]} 3. Nc3 {[%clk 0:02:58.6]} 3... d5 {[%clk 0:02:48.7]}
4. Bxf6 {[%clk 0:02:59.1]} 4... exf6 {[%clk 0:02:50.2]} 5. e3 {[%clk 0:02:59.6]}
5... Be6 {[%clk 0:02:50.9]} 6. Bd3 {[%clk 0:03:00.8]} 6... Nc6 {[%clk
0:02:50.9]} 7. a3 {[%clk 0:03:02.4]} 7... Qd7 {[%clk 0:02:49.8]} 8. Qf3 {[%clk
0:03:03.9]} 8... Ne7 {[%clk 0:02:43.7]} 9. h4 {[%clk 0:03:05]} 9... h5 {[%clk
0:02:43.1]} 10. Nge2 {[%clk 0:03:06.5]} 10... g6 {[%clk 0:02:44.1]} 11. Nf4
{[%clk 0:03:07.2]} 11... Bf7 {[%clk 0:02:44.8]} 12. O-O-O {[%clk 0:03:07.8]}
12... c6 {[%clk 0:02:45.7]} 13. Na4 {[%clk 0:03:05.1]} 13... Nc8 {[%clk
0:02:42.8]} 14. Nc5 {[%clk 0:03:03.1]} 14... Bxc5 {[%clk 0:02:43.3]} 15. dxc5
{[%clk 0:03:04]} 15... Qe7 {[%clk 0:02:44.7]} 16. b4 {[%clk 0:03:02.7]} 16... b6
{[%clk 0:02:44.7]} 17. Qg3 {[%clk 0:03:03.3]} 17... Rg8 {[%clk 0:02:44.1]} 18.
cxb6 {[%clk 0:03:03.5]} 18... axb6 {[%clk 0:02:44.9]} 19. Kb2 {[%clk 0:03:02.4]}
19... Nd6 {[%clk 0:02:34.3]} 20. c3 {[%clk 0:02:59.3]} 20... c5 {[%clk
0:02:33.6]} 21. Ra1 {[%clk 0:02:57.3]} 21... Qe5 {[%clk 0:01:50.6]} 22. Ne2
{[%clk 0:02:55.2]} 22... Kd7 {[%clk 0:01:50.1]} 23. a4 {[%clk 0:02:52.6]} 23...
Rgc8 {[%clk 0:01:46.8]} 24. Rhd1 {[%clk 0:02:50.6]} 24... cxb4 {[%clk
0:01:17.4]} 25. Qxe5 {[%clk 0:02:49.8]} 25... fxe5 {[%clk 0:01:19.3]} 26. cxb4
{[%clk 0:02:49.8]} 26... Nc4+ {[%clk 0:01:20.9]} 27. Kb1 {[%clk 0:02:48.5]}
27... Ke7 {[%clk 0:01:12.4]} 28. Rc1 {[%clk 0:02:47.5]} 28... d4 {[%clk
0:00:33.2]} 29. exd4 {[%clk 0:02:44.8]} 29... e4 {[%clk 0:00:33.8]} 30. Bxc4
{[%clk 0:02:43.6]} 30... Bxc4 {[%clk 0:00:35.7]} 31. Nf4 {[%clk 0:02:41.4]}
31... Kf6 {[%clk 0:00:25.6]} 32. Kb2 {[%clk 0:02:42.8]} 32... g5 {[%clk
0:00:24.3]} 33. hxg5+ {[%clk 0:02:40.3]} 33... Kxg5 {[%clk 0:00:26.2]} 34. g3
{[%clk 0:02:42.2]} 34... h4 {[%clk 0:00:26.5]} 35. d5 {[%clk 0:02:41]} 35...
hxg3 {[%clk 0:00:26.7]} 36. fxg3 {[%clk 0:02:42.9]} 36... Kg4 {[%clk 0:00:26.5]}
37. Rc3 {[%clk 0:02:43]} 37... Ba6 {[%clk 0:00:21.3]} 38. Rac1 {[%clk
0:02:36.6]} 38... Rxc3 {[%clk 0:00:17.1]} 39. Rxc3 {[%clk 0:02:38.5]} 39... Rh8
{[%clk 0:00:16.5]} 40. b5 {[%clk 0:02:36.8]} 40... Bb7 {[%clk 0:00:16]} 41. d6
{[%clk 0:02:38.3]} 41... Rd8 {[%clk 0:00:15]} 42. Rc7 {[%clk 0:02:39.4]} 42...
Kxg3 {[%clk 0:00:15.1]} 43. Ne6 {[%clk 0:02:36.5]} 43... Rxd6 {[%clk 0:00:15.2]}
44. Ng7 {[%clk 0:02:37.9]} 44... Rd2+ {[%clk 0:00:14.1]} 45. Kc1 {[%clk
0:02:35.5]} 45... Rf2 {[%clk 0:00:12.6]} 46. Rxb7 {[%clk 0:02:34.2]} 46... e3
{[%clk 0:00:13.9]} 47. Rxb6 {[%clk 0:02:30.6]} 47... Rf1+ {[%clk 0:00:12.1]} 48.
Kc2 {[%clk 0:02:32]} 48... f4 {[%clk 0:00:09.2]} 49. Nf5+ {[%clk 0:02:33.1]}
49... Kg4 {[%clk 0:00:09.3]} 50. Nxe3+ {[%clk 0:02:31.6]} 50... fxe3 {[%clk
0:00:11.2]} 51. Re6 {[%clk 0:02:30.1]} 51... Kf3 {[%clk 0:00:12.3]} 52. b6
{[%clk 0:02:28.8]} 52... Rf2+ {[%clk 0:00:05.2]} 53. Kc3 {[%clk 0:02:29.8]}
53... Rf1 {[%clk 0:00:06.2]} 54. a5 {[%clk 0:02:28.1]} 54... Rb1 {[%clk
0:00:07]} 55. a6 {[%clk 0:02:25.7]} 55... e2 {[%clk 0:00:08.5]} 56. a7 {[%clk
0:02:24.7]} 56... Ra1 {[%clk 0:00:07.4]} 57. b7 {[%clk 0:02:21.7]} 57... Ra6
{[%clk 0:00:02.1]} 58. a8=Q {[%clk 0:02:18]} 58... Rxe6 {[%clk 0:00:02.5]} 59.
b8=Q+ {[%clk 0:02:19.5]} 59... Kf2 {[%clk 0:00:03.8]} 60. Qf8+ {[%clk
0:02:18.3]} 60... Kg3 {[%clk 0:00:02]} 61. Qaf3+ {[%clk 0:02:18.2]} 1-0

[Event "*** Titled Tuesday Blitz"]
[Site "Chess.com"]
[Date "2018.01.02"]
[Round "10"]
[White "Vamostodorecto"]
[Black "ChessicallyInclined"]
[Result "1/2-1/2"]
[WhiteElo "2339"]
[BlackElo "2219"]
[TimeControl "180+2"]
[EndTime "15:12:59 PST"]
[Termination "Game drawn by agreement"]

1. d4 {[%clk 0:03:01.3]} 1... d5 {[%clk 0:03:00.3]} 2. c4 {[%clk 0:02:56.3]}
2... e6 {[%clk 0:03:01]} 3. Nc3 {[%clk 0:02:56.8]} 3... Nf6 {[%clk 0:02:57.4]}
4. cxd5 {[%clk 0:02:57.3]} 4... exd5 {[%clk 0:02:57.9]} 5. Bg5 {[%clk
0:02:58.1]} 5... Be7 {[%clk 0:02:58.6]} 6. e3 {[%clk 0:02:57.3]} 6... c6 {[%clk
0:02:59.3]} 7. Bd3 {[%clk 0:02:58.8]} 7... Nbd7 {[%clk 0:02:59.5]} 8. Qc2 {[%clk
0:02:59.4]} 8... h6 {[%clk 0:02:59.4]} 9. Bh4 {[%clk 0:02:59.5]} 9... Nh5 {[%clk
0:02:58.5]} 10. Bxe7 {[%clk 0:02:58.8]} 10... Qxe7 {[%clk 0:02:58.6]} 11. Nge2
{[%clk 0:03:00.3]} 11... Nb6 {[%clk 0:02:56.3]} 12. O-O-O {[%clk 0:02:58.6]}
12... Bd7 {[%clk 0:02:49.7]} 13. Ng3 {[%clk 0:02:57.8]} 13... Nxg3 {[%clk
0:02:50]} 14. hxg3 {[%clk 0:02:59.7]} 14... O-O-O {[%clk 0:02:49.8]} 15. Kb1
{[%clk 0:02:53.2]} 15... Kb8 {[%clk 0:02:49.8]} 16. Rc1 {[%clk 0:02:50.1]} 16...
g6 {[%clk 0:02:35.2]} 17. Na4 {[%clk 0:02:50.4]} 17... Nxa4 {[%clk 0:02:25.9]}
18. Qxa4 {[%clk 0:02:52.3]} 18... c5 {[%clk 0:02:25.2]} 19. Qa3 {[%clk
0:02:49.2]} 19... Qf6 {[%clk 0:02:18.7]} 20. Qxc5 {[%clk 0:02:24]} 20... Qxf2
{[%clk 0:02:11.2]} 21. Qxd5 {[%clk 0:02:19.3]} 21... Qxe3 {[%clk 0:01:58.5]} 22.
Qd6+ {[%clk 0:02:12.2]} 22... Ka8 {[%clk 0:01:56]} 23. Bc2 {[%clk 0:01:59.2]}
23... Bf5 {[%clk 0:01:52.1]} 24. Qf6 {[%clk 0:01:39.8]} 24... Bxc2+ {[%clk
0:01:48.4]} 25. Rxc2 {[%clk 0:01:41.7]} 25... Qxg3 {[%clk 0:01:46.2]} 26. Rhc1
{[%clk 0:01:37.2]} 26... Qd3 {[%clk 0:01:38.6]} 27. Ka1 {[%clk 0:01:33.1]} 27...
a6 {[%clk 0:01:36.5]} 28. Rc7 {[%clk 0:01:27.2]} 28... Rhe8 {[%clk 0:01:23.2]}
29. Qb6 {[%clk 0:00:55.3]} 29... Rb8 {[%clk 0:01:10.8]} 30. Rxf7 {[%clk
0:00:49.9]} 30... Qc2 {[%clk 0:01:05.5]} 31. Rb1 {[%clk 0:00:44.2]} 31... Qxg2
{[%clk 0:00:55.7]} 32. a3 {[%clk 0:00:39.4]} 32... Qd5 {[%clk 0:00:51.2]} 33.
Rg7 {[%clk 0:00:37.1]} 33... Re6 {[%clk 0:00:44.3]} 34. Qb4 {[%clk 0:00:30.6]}
34... h5 {[%clk 0:00:41.5]} 35. Rc1 {[%clk 0:00:32]} 35... Rf6 {[%clk
0:00:33.3]} 36. Qc5 {[%clk 0:00:17.8]} 36... Qxc5 {[%clk 0:00:32.9]} 37. Rxc5
{[%clk 0:00:17.3]} 37... h4 {[%clk 0:00:32.5]} 38. Rh7 {[%clk 0:00:16.7]} 38...
Rf4 {[%clk 0:00:30.1]} 39. d5 {[%clk 0:00:17.6]} 39... g5 {[%clk 0:00:28]} 40.
d6 {[%clk 0:00:18.5]} 40... Rd4 {[%clk 0:00:28.6]} 41. Rxg5 {[%clk 0:00:18.4]}
41... Rxd6 {[%clk 0:00:28.9]} 42. Rxh4 {[%clk 0:00:20]} 42... Rc8 {[%clk
0:00:26.8]} 43. Rh7 {[%clk 0:00:20.4]} 43... Rb6 {[%clk 0:00:27.5]} 1/2-1/2

[Event "*** Titled Tuesday Blitz"]
[Site "Chess.com"]
[Date "2018.01.02"]
[Round "10"]
[White "VeraNebolsina"]
[Black "TST2014"]
[Result "1-0"]
[WhiteElo "2310"]
[BlackElo "2289"]
[TimeControl "180+2"]
[EndTime "15:13:07 PST"]
[Termination "VeraNebolsina won by checkmate"]

1. e4 {[%clk 0:03:01.9]} 1... c5 {[%clk 0:02:59.8]} 2. Nf3 {[%clk 0:03:00.1]}
2... Nc6 {[%clk 0:03:00.7]} 3. Bb5 {[%clk 0:02:58]} 3... g6 {[%clk 0:02:59.7]}
4. Bxc6 {[%clk 0:02:54.5]} 4... dxc6 {[%clk 0:02:55.8]} 5. d3 {[%clk 0:02:48.6]}
5... Bg7 {[%clk 0:02:56.9]} 6. h3 {[%clk 0:02:48.6]} 6... Nf6 {[%clk 0:02:57.4]}
7. Nc3 {[%clk 0:02:47]} 7... O-O {[%clk 0:02:58.6]} 8. Bf4 {[%clk 0:02:46.9]}
8... Nd7 {[%clk 0:02:56.4]} 9. Qd2 {[%clk 0:02:46]} 9... e5 {[%clk 0:02:53.9]}
10. Bh6 {[%clk 0:02:31.1]} 10... Re8 {[%clk 0:02:54.1]} 11. Bxg7 {[%clk
0:02:27.7]} 11... Kxg7 {[%clk 0:02:54.5]} 12. O-O {[%clk 0:02:19.9]} 12... Nf6
{[%clk 0:02:48.9]} 13. Qe3 {[%clk 0:01:28.9]} 13... b6 {[%clk 0:02:45.3]} 14.
Nh2 {[%clk 0:01:28.5]} 14... Nh5 {[%clk 0:02:40]} 15. Ne2 {[%clk 0:01:28.2]}
15... Qh4 {[%clk 0:02:36.2]} 16. f4 {[%clk 0:01:15.3]} 16... f5 {[%clk
0:02:19.5]} 17. fxe5 {[%clk 0:01:04.8]} 17... Rxe5 {[%clk 0:01:52.3]} 18. Nf3
{[%clk 0:01:02.7]} 18... Qe7 {[%clk 0:01:37.3]} 19. Nxe5 {[%clk 0:01:03]} 19...
Qxe5 {[%clk 0:01:38.9]} 20. Qf3 {[%clk 0:01:01.4]} 20... Nf6 {[%clk 0:01:24.5]}
21. exf5 {[%clk 0:00:57.1]} 21... Bxf5 {[%clk 0:01:24.9]} 22. Rae1 {[%clk
0:00:52]} 22... Qxb2 {[%clk 0:01:22.1]} 23. g4 {[%clk 0:00:45.4]} 23... Be6
{[%clk 0:01:15.9]} 24. Qxc6 {[%clk 0:00:37.2]} 24... Bd5 {[%clk 0:00:57.1]} 25.
Qc7+ {[%clk 0:00:36.4]} 25... Kg8 {[%clk 0:00:57.2]} 26. d4 {[%clk 0:00:26.4]}
26... Rf8 {[%clk 0:00:25.9]} 27. Rxf6 {[%clk 0:00:26.1]} 27... Rxf6 {[%clk
0:00:25.9]} 28. Qd8+ {[%clk 0:00:26.4]} 28... Kg7 {[%clk 0:00:26.4]} 29. Qxd5
{[%clk 0:00:24.8]} 29... Qxc2 {[%clk 0:00:27.9]} 30. dxc5 {[%clk 0:00:19.3]}
30... bxc5 {[%clk 0:00:26.9]} 31. Qe5 {[%clk 0:00:19.7]} 31... h6 {[%clk
0:00:18.3]} 32. Rf1 {[%clk 0:00:19.2]} 32... Qxe2 {[%clk 0:00:04.7]} 33. Qxe2
{[%clk 0:00:16]} 33... Rxf1+ {[%clk 0:00:05.2]} 34. Qxf1 {[%clk 0:00:16.9]}
34... h5 {[%clk 0:00:05.9]} 35. g5 {[%clk 0:00:16.9]} 35... h4 {[%clk
0:00:06.3]} 36. Qf6+ {[%clk 0:00:17.2]} 36... Kh7 {[%clk 0:00:07.2]} 37. Qf7+
{[%clk 0:00:18]} 37... Kh8 {[%clk 0:00:06.5]} 38. Qxg6 {[%clk 0:00:19]} 38... c4
{[%clk 0:00:07.9]} 39. Qf7 {[%clk 0:00:20]} 39... c3 {[%clk 0:00:09.4]} 40. g6
{[%clk 0:00:21.1]} 40... c2 {[%clk 0:00:11]} 41. Qh7# {[%clk 0:00:21.8]} 1-0